fUSD/lending_fUSD_20250530
["ID","MTS","AMOUNT","RATE_DAILY","PERIOD"]
[363189031,1748619083266,-2098.6,0.00023013,2]
[363189032,1748619083275,-166.81606614,0.00023013,2]
[363189033,1748619083285,-420.0,0.00023013,2]
[363189034,1748619083294,-490.07,0.00023013,2]
[363189035,1748619083304,-420.0,0.00023013,2]
[363189036,1748619083313,-420.0,0.00023013,2]
[363189037,1748619083322,-770.69,0.00023013,2]
[363189038,1748619083331,-419.37865853,0.00023013,2]
[363189039,1748619083341,-420.0,0.00023013,2]
[363189040,1748619083350,-890.15,0.00023013,2]
[363189041,1748619083359,-420.0,0.00023013,2]
[363189042,1748619083369,-420.0,0.00023013,2]
[363189043,1748619083379,-420.86,0.00023013,2]
[363189044,1748619083390,-426.87,0.00023013,2]
[363189045,1748619083399,-420.0,0.00023013,2]
[363189046,1748619083409,-420.0,0.00023013,2]
[363189047,1748619083419,-420.0,0.00023013,2]
[363189048,1748619083429,-424.91,0.00023013,2]
[363189049,1748619083439,-341.66212311,0.00023013,2]
[363189050,1748619083448,-429.06,0.00023013,2]
[363189051,1748619083458,-420.0,0.00023013,2]
[363189052,1748619083467,-420.0,0.00023013,2]
[363189053,1748619083477,-420.0,0.00023013,2]
[363189054,1748619083486,-758.53,0.00023013,2]
[363189055,1748619083496,-420.0,0.00023013,2]
[363189056,1748619083505,-420.0,0.00023013,2]
[363189057,1748619083517,-420.0,0.00023013,2]
[363189058,1748619083527,-420.0,0.00023013,2]
[363189059,1748619083536,-772.94,0.00023013,2]
[363189060,1748619083545,-420.0,0.00023013,2]
[363189061,1748619083555,-420.0,0.00023013,2]
[363189062,1748619083565,-420.0,0.00023013,2]
[363189063,1748619083575,-427.85,0.00023013,2]
[363189064,1748619083585,-420.0,0.00023013,2]
[363189065,1748619083595,-420.0,0.00023013,2]
[363189066,1748619083605,-456.87,0.00023013,2]
[363189067,1748619083614,-420.0,0.00023013,2]
[363189068,1748619083624,-420.0,0.00023013,2]
[363189069,1748619083634,-420.0,0.00023013,2]
[363189070,1748619083644,-420.0,0.00023013,2]
[363189071,1748619083654,-420.0,0.00023013,2]
[363189072,1748619083663,-420.0,0.00023013,2]
[363189073,1748619083673,-420.0,0.00023013,2]
[363189074,1748619083682,-420.0,0.00023013,2]
[363189075,1748619083692,-420.0,0.00023013,2]
[363189076,1748619083702,-420.0,0.00023013,2]
[363189077,1748619083711,-420.0,0.00023013,2]
[363189078,1748619083721,-151.0,0.00023013,7]
[363189079,1748619083731,-420.0,0.00023013,2]
[363189080,1748619083740,-151.0,0.00023013,7]
[363189081,1748619083750,-420.0,0.00023013,2]
[363189082,1748619083760,-394.26,0.00023013,2]
[363189083,1748619083769,-420.0,0.00023013,2]
[363189084,1748619083778,-777.89,0.00023013,2]
[363189085,1748619083789,-1819.65,0.00023013,2]
[363189086,1748619083802,-863.65,0.00023013,2]
[363189087,1748619083811,-420.0,0.00023013,2]
[363189088,1748619083820,-151.0,0.00023013,7]
[363189089,1748619083830,-1212.65,0.00023013,2]
[363189090,1748619083839,-151.0,0.00023013,7]
[363189091,1748619083848,-1175.81,0.00023013,2]
[363189092,1748619083858,-553.05,0.00023013,2]
[363189093,1748619083868,-796.08,0.00023013,2]
[363189094,1748619083878,-420.0,0.00023013,2]
[363189095,1748619083887,-420.0,0.00023013,2]
[363189096,1748619083897,-523.03,0.00023013,2]
[363189097,1748619083907,-501.69,0.00023013,2]
[363189098,1748619083917,-1811.35,0.00023013,2]
[363189099,1748619083927,-420.0,0.00023013,2]
[363189100,1748619083936,-420.0,0.00023013,2]
[363189101,1748619083945,-420.0,0.00023013,2]
[363189102,1748619083955,-822.17,0.00023013,2]
[363189103,1748619083964,-496.62,0.00023013,2]
[363189104,1748619083974,-641.0,0.00023013,2]
[363189105,1748619083983,-847.29,0.00023013,2]
[363189106,1748619083993,-420.0,0.00023013,2]
[363189107,1748619084003,-420.0,0.00023013,2]
[363189108,1748619084014,-1102.55,0.00023013,2]
[363189109,1748619084023,-443.43,0.00023013,2]
[363189110,1748619084032,-420.0,0.00023013,2]
[363189111,1748619084042,-420.0,0.00023013,2]
[363189112,1748619084051,-443.13,0.00023013,2]
[363189113,1748619084062,-751.91,0.00023013,2]
[363189114,1748619084073,-420.0,0.00023013,2]
[363189115,1748619084083,-420.0,0.00023013,2]
[363189116,1748619084093,-518.42,0.00023013,2]
[363189117,1748619084104,-1199.0,0.00023013,2]
[363189118,1748619084113,-151.0,0.00023013,7]
[363189119,1748619084123,-151.0,0.00023013,7]
[363189120,1748619084132,-151.0,0.00023013,7]
[363189121,1748619084141,-841.83,0.00023013,2]
[363189122,1748619084151,-1711.43,0.00023013,2]
[363189123,1748619084160,-508.53,0.00023013,2]
[363189124,1748619084170,-948.67,0.00023013,2]
[363189125,1748619084179,-420.0,0.00023013,2]
[363189126,1748619084190,-610.77,0.00023013,2]
[363189127,1748619084200,-420.0,0.00023013,2]
[363189128,1748619084209,-423.52,0.00023013,2]
[363189129,1748619084218,-2171.03,0.00023013,2]
[363189130,1748619084227,-420.0,0.00023013,2]
[363189131,1748619084237,-420.0,0.00023013,2]
[363189132,1748619084246,-945.97,0.00023013,2]
[363189133,1748619084255,-572.48,0.00023013,2]
[363189134,1748619084267,-1319.71,0.00023013,2]
[363189135,1748619084276,-456.76,0.00023013,2]
[363189136,1748619084286,-1456.24,0.00023013,2]
[363189137,1748619084295,-636.09,0.00023013,2]
[363189138,1748619084305,-743.92,0.00023013,2]
[363189139,1748619084315,-853.5,0.00023013,2]
[363189140,1748619084324,-420.0,0.00023013,2]
[363189141,1748619084334,-1258.56,0.00023013,2]
[363189142,1748619084344,-652.14,0.00023013,2]
[363189143,1748619084354,-569.93,0.00023013,2]
[363189144,1748619084363,-1419.49,0.00023013,2]
[363189145,1748619084373,-584.74,0.00023013,2]
[363189146,1748619084383,-755.51,0.00023013,2]
[363189147,1748619084393,-582.04,0.00023013,2]
[363189148,1748619084404,-420.0,0.00023013,2]
[363189149,1748619084413,-420.0,0.00023013,2]
[363189150,1748619084423,-420.0,0.00023013,2]
[363189151,1748619084432,-781.6,0.00023013,2]
[363189152,1748619084442,-1041.01,0.00023013,2]
[363189153,1748619084452,-1369.52,0.00023013,2]
[363189154,1748619084461,-474.65,0.00023013,2]
[363189155,1748619084471,-463.6,0.00023013,2]
[363189156,1748619084481,-253.960596,0.00023013,7]
[363189157,1748619084491,-1379.11,0.00023013,2]
[363189158,1748619084501,-420.0,0.00023013,2]
[363189159,1748619084513,-420.0,0.00023013,2]
[363189160,1748619084522,-666.7,0.00023013,2]
[363189161,1748619084532,-741.8,0.00023013,2]
[363189162,1748619084542,-1319.43,0.00023013,2]
[363189163,1748619084551,-576.82,0.00023013,2]
[363189164,1748619084562,-693.89,0.00023013,2]
[363189165,1748619084571,-561.65,0.00023013,2]
[363189166,1748619084581,-1160.92,0.00023013,2]
[363189167,1748619084592,-1207.82,0.00023013,2]
[363189168,1748619084602,-472.93,0.00023013,2]
[363189169,1748619084611,-1166.17,0.00023013,2]
[363189170,1748619084620,-1168.26,0.00023013,2]
[363189171,1748619084629,-420.0,0.00023013,2]
[363189172,1748619084639,-420.0,0.00023013,2]
[363189173,1748619084649,-466.98,0.00023013,2]
[363189174,1748619084658,-784.43,0.00023013,2]
[363189175,1748619084668,-723.56,0.00023013,2]
[363189176,1748619084678,-1364.89,0.00023013,2]
[363189177,1748619084688,-801.75,0.00023013,2]
[363189178,1748619084698,-604.61,0.00023013,2]
[363189179,1748619084707,-862.94,0.00023013,2]
[363189180,1748619084717,-635.16,0.00023013,2]
[363189181,1748619084727,-587.51,0.00023013,2]
[363189182,1748619084737,-1137.25,0.00023013,2]
[363189183,1748619084747,-420.0,0.00023013,2]
[363189184,1748619084757,-786.55,0.00023013,2]
[363189185,1748619084768,-420.0,0.00023013,2]
[363189186,1748619084778,-523.95,0.00023013,2]
[363189187,1748619084790,-1160.03,0.00023013,2]
[363189188,1748619084801,-673.65,0.00023013,2]
[363189189,1748619084810,-931.25,0.00023013,2]
[363189190,1748619084820,-420.0,0.00023013,2]
[363189191,1748619084830,-420.0,0.00023013,2]
[363189192,1748619084840,-552.42,0.00023013,2]
[363189193,1748619084850,-459.7,0.00023013,2]
[363189194,1748619084859,-1724.07,0.00023013,2]
[363189195,1748619084870,-420.0,0.00023013,2]
[363189196,1748619084879,-600.48,0.00023013,2]
[363189197,1748619084890,-726.29,0.00023013,2]
[363189198,1748619084899,-658.621131,0.00023013,7]
[363189199,1748619084909,-420.0,0.00023013,2]
[363189200,1748619084919,-472.86,0.00023013,2]
[363189201,1748619084928,-1073.36,0.00023013,2]
[363189202,1748619084939,-420.0,0.00023013,2]
[363189203,1748619084948,-832.22,0.00023013,2]
[363189204,1748619084958,-658.621131,0.00023013,7]
[363189205,1748619085153,-576.09,0.00023013,2]
[363189206,1748619085163,-1371.43,0.00023013,2]
[363189207,1748619085172,-1079.44,0.00023013,2]
[363189208,1748619085182,-538.33,0.00023013,2]
[363189209,1748619085191,-420.0,0.00023013,2]
[363189210,1748619085200,-425.32319039,0.00023013,2]
[363189211,1748619085210,-971.8,0.00023013,2]
[363189212,1748619085219,-590.55,0.00023013,2]
[363189213,1748619085228,-550.23,0.00023013,2]
[363189214,1748619085238,-476.32,0.00023013,2]
[363189215,1748619085247,-523.75,0.00023013,2]
[363189216,1748619085256,-420.0,0.00023013,2]
[363189217,1748619085267,-420.0,0.00023013,2]
[363189218,1748619085277,-2381.24,0.00023013,2]
[363189219,1748619085286,-420.0,0.00023013,2]
[363189220,1748619085295,-420.0,0.00023013,2]
[363189221,1748619085305,-1073.24,0.00023013,2]
[363189222,1748619085315,-659.08,0.00023013,2]
[363189223,1748619085324,-420.0,0.00023013,2]
[363189224,1748619085334,-420.0,0.00023013,2]
[363189225,1748619085344,-535.46,0.00023013,2]
[363189226,1748619085354,-420.0,0.00023013,2]
[363189227,1748619085363,-569.05,0.00023013,2]
[363189228,1748619085373,-420.0,0.00023013,2]
[363189229,1748619085383,-808.94,0.00023013,2]
[363189230,1748619085392,-1940.81,0.00023013,2]
[363189231,1748619085402,-420.0,0.00023013,2]
[363189232,1748619085411,-151.0,0.00023013,7]
[363189233,1748619085420,-463.09,0.00023013,2]
[363189234,1748619085430,-627.54,0.00023013,2]
[363189235,1748619085440,-420.0,0.00023013,2]
[363189236,1748619085450,-1123.75,0.00023013,2]
[363189237,1748619085459,-539.2,0.00023013,2]
[363189238,1748619085469,-487.89,0.00023013,2]
[363189239,1748619085478,-420.0,0.00023013,2]
[363189240,1748619085487,-420.0,0.00023013,2]
[363189241,1748619085496,-1448.39,0.00023013,2]
[363189242,1748619085506,-1124.04,0.00023013,2]
[363189243,1748619085517,-1287.465475,0.00023013,7]
[363189244,1748619085526,-553.55,0.00023013,2]
[363189245,1748619085536,-1287.465475,0.00023013,7]
[363189246,1748619085546,-420.0,0.00023013,2]
[363189247,1748619085555,-1053.3,0.00023013,2]
[363189248,1748619085566,-584.13,0.00023013,2]
[363189249,1748619085575,-420.0,0.00023013,2]
[363189250,1748619085586,-1192.82,0.00023013,2]
[363189251,1748619085597,-613.48,0.00023013,2]
[363189252,1748619085606,-420.0,0.00023013,2]
[363189253,1748619085616,-420.0,0.00023013,2]
[363189254,1748619085626,-420.0,0.00023013,2]
[363189255,1748619085636,-491.19,0.00023013,2]
[363189256,1748619085645,-466.46,0.00023013,2]
[363189257,1748619085655,-561.99,0.00023013,2]
[363189258,1748619085664,-1678.06,0.00023013,2]
[363189259,1748619085674,-420.0,0.00023013,2]
[363189260,1748619085684,-420.0,0.00023013,2]
[363189261,1748619085693,-1400.08,0.00023013,2]
[363189262,1748619085703,-600.46,0.00023013,2]
[363189263,1748619085712,-626.74,0.00023013,2]
[363189264,1748619085722,-729.19,0.00023013,2]
[363189265,1748619085732,-420.0,0.00023013,2]
[363189266,1748619085741,-849.19,0.00023013,2]
[363189267,1748619085751,-1178.79,0.00023013,2]
[363189268,1748619085762,-420.0,0.00023013,2]
[363189269,1748619085771,-1833.03,0.00023013,2]
[363189270,1748619085780,-558.24,0.00023013,2]
[363189271,1748619085793,-633.87,0.00023013,2]
[363189272,1748619085802,-420.0,0.00023013,2]
[363189273,1748619085812,-465.46,0.00023013,2]
[363189274,1748619085822,-1085.24,0.00023013,2]
[363189275,1748619085831,-420.0,0.00023013,2]
[363189276,1748619085842,-180.808035,0.00023013,7]
[363189277,1748619085851,-3634.58,0.00023013,2]
[363189278,1748619085861,-180.808035,0.00023013,7]
[363189279,1748619085870,-2016.38,0.00023013,2]
[363189280,1748619085880,-609.8,0.00023013,2]
[363189281,1748619085890,-420.0,0.00023013,2]
[363189282,1748619085899,-1168.36,0.00023013,2]
[363189283,1748619085909,-5361.86,0.00023013,2]
[363189284,1748619085918,-420.0,0.00023013,2]
[363189285,1748619085928,-2127.16,0.00023013,2]
[363189286,1748619085937,-180.808035,0.00023013,7]
[363189287,1748619085947,-180.808035,0.00023013,7]
[363189288,1748619085958,-1484.06,0.00023013,2]
[363189289,1748619085969,-420.0,0.00023013,2]
[363189290,1748619085980,-1109.67,0.00023013,2]
[363189291,1748619085991,-904.81,0.00023013,2]
[363189292,1748619086001,-575.02,0.00023013,2]
[363189293,1748619086014,-614.8,0.00023013,2]
[363189294,1748619086023,-562.44,0.00023013,2]
[363189295,1748619086033,-674.8,0.00023013,2]
[363189296,1748619086042,-2741.562088,0.00023013,7]
[363189297,1748619086052,-2741.562088,0.00023013,7]
[363189298,1748619086061,-167.23334487,0.00023013,2]
[363189299,1748619086070,-2741.562088,0.00023013,7]
[363189300,1748619086079,-2741.562088,0.00023013,7]
[363189301,1748619086088,-1824.08,0.00023013,2]
[363189302,1748619086098,-420.0,0.00023013,2]
[363189303,1748619086107,-420.0,0.00023013,2]
[363189304,1748619086117,-151.0,0.00023013,7]
[363189305,1748619086127,-490.58,0.00023013,2]
[363189306,1748619086136,-7075.98,0.00023013,2]
[363189307,1748619086146,-420.0,0.00023013,2]
[363189308,1748619086155,-1096.87,0.00023013,2]
[363189309,1748619086165,-723.21,0.00023013,2]
[363189310,1748619086175,-420.0,0.00023013,2]
[363189311,1748619086184,-1561.66,0.00023013,2]
[363189312,1748619086193,-420.0,0.00023013,2]
[363189313,1748619086202,-9812.16,0.00023013,2]
[363189314,1748619086212,-420.0,0.00023013,2]
[363189315,1748619086221,-1075.43,0.00023013,2]
[363189316,1748619086230,-1429.73,0.00023013,2]
[363189317,1748619086239,-1946.94,0.00023013,2]
[363189318,1748619086249,-622.82,0.00023013,2]
[363189319,1748619086260,-11863.32,0.00023013,2]
[363189320,1748619086269,-915.42,0.00023013,2]
[363189321,1748619086279,-420.0,0.00023013,2]
[363189322,1748619086288,-594.91,0.00023013,2]
[363189323,1748619086297,-797.36,0.00023013,2]
[363189324,1748619086307,-1167.97,0.00023013,2]
[363189325,1748619086316,-5682.0,0.00023013,2]
[363189326,1748619086325,-524.77,0.00023013,2]
[363189327,1748619086334,-1550.77,0.00023013,2]
[363189328,1748619086344,-420.0,0.00023013,2]
[363189329,1748619086353,-974.63,0.00023013,2]
[363189330,1748619086363,-655.87,0.00023013,2]
[363189331,1748619086372,-600.66,0.00023013,2]
[363189332,1748619086381,-702.81,0.00023013,2]
[363189333,1748619086392,-1024.75,0.00023013,2]
[363189334,1748619086401,-609.69,0.00023013,2]
[363189335,1748619086411,-1076.37,0.00023013,2]
[363189336,1748619086420,-610.074716,0.00023013,7]
[363189337,1748619086429,-420.0,0.00023013,2]
[363189338,1748619086439,-464.14,0.00023013,2]
[363189339,1748619086448,-610.074716,0.00023013,7]
[363189340,1748619086458,-420.0,0.00023013,2]
[363189341,1748619086467,-1708.68,0.00023013,2]
[363189342,1748619086476,-9498.11,0.00023013,2]
[363189343,1748619086486,-476.72,0.00023013,2]
[363189344,1748619086495,-160.0,0.00023013,2]
[363189345,1748619086505,-1013.34,0.00023013,2]
[363189346,1748619086516,-726.29,0.00023013,2]
[363189347,1748619086526,-1568.21,0.00023013,2]
[363189348,1748619086535,-850.36,0.00023013,2]
[363189349,1748619086544,-997.73,0.00023013,2]
[363189350,1748619086554,-829.87,0.00023013,2]
[363189351,1748619086563,-717.62,0.00023013,2]
[363189352,1748619086573,-862.79,0.00023013,2]
[363189353,1748619086582,-2137.81,0.00023013,2]
[363189354,1748619086591,-657.91,0.00023013,2]
[363189355,1748619086600,-420.0,0.00023013,2]
[363189356,1748619086610,-985.32,0.00023013,2]
[363189357,1748619086620,-420.0,0.00023013,2]
[363189358,1748619086629,-420.0,0.00023013,2]
[363189359,1748619086638,-541.52,0.00023013,2]
[363189360,1748619086648,-1399.41,0.00023013,2]
[363189361,1748619086657,-420.0,0.00023013,2]
[363189362,1748619086674,-1150.73,0.00023013,2]
[363189363,1748619086687,-420.0,0.00023013,2]
[363189364,1748619086697,-2296.95,0.00023013,2]
[363189365,1748619086707,-420.0,0.00023013,2]
[363189366,1748619086716,-795.59,0.00023013,2]
[363189367,1748619086726,-682.72,0.00023013,2]
[363189368,1748619086736,-575.16,0.00023013,2]
[363189369,1748619086746,-3116.89,0.00023013,2]
[363189370,1748619086756,-1061.77,0.00023013,2]
[363189371,1748619086767,-1233.85,0.00023013,2]
[363189372,1748619086776,-420.0,0.00023013,2]
[363189373,1748619086786,-11481.25,0.00023013,2]
[363189374,1748619086800,-426.85,0.00023013,2]
[363189375,1748619086813,-1096.82,0.00023013,2]
[363189376,1748619086823,-420.0,0.00023013,2]
[363189377,1748619086836,-857.17,0.00023013,2]
[363189378,1748619086846,-1626.19,0.00023013,2]
[363189379,1748619086858,-420.0,0.00023013,2]
[363189380,1748619086870,-634.02,0.00023013,2]
[363189381,1748619086880,-1283.49,0.00023013,2]
[363189382,1748619086891,-1507.45,0.00023013,2]
[363189383,1748619086902,-532.67,0.00023013,2]
[363189384,1748619086911,-441.96,0.00023013,2]
[363189385,1748619086920,-336.8506503,0.00023013,2]
[363189386,1748619086930,-3197.32,0.00023013,2]
[363189387,1748619086939,-1018.57,0.00023013,2]
[363189388,1748619086949,-1122.87,0.00023013,2]
[363189389,1748619086959,-2066.87,0.00023013,2]
[363189390,1748619086968,-489.48,0.00023013,2]
[363189391,1748619086978,-461.31,0.00023013,2]
[363189392,1748619086988,-429.62,0.00023013,2]
[363189393,1748619086997,-3670.01,0.00023013,2]
[363189394,1748619087007,-420.0,0.00023013,2]
[363189395,1748619087018,-805.58,0.00023013,2]
[363189396,1748619087027,-1386.9,0.00023013,2]
[363189397,1748619087038,-894.1,0.00023013,2]
[363189398,1748619087048,-2960.24,0.00023013,2]
[363189399,1748619087057,-1963.11,0.00023013,2]
[363189400,1748619087070,-906.34,0.00023013,2]
[363189401,1748619087080,-7808.56,0.00023013,2]
[363189402,1748619087090,-1068.95,0.00023013,2]
[363189403,1748619087099,-975.57,0.00023013,2]
[363189404,1748619087109,-1446.02,0.00023013,2]
[363189405,1748619087118,-1309.89,0.00023013,2]
[363189406,1748619087128,-5878.54,0.00023013,2]
[363189407,1748619087137,-159.595298,0.00023013,7]
[363189408,1748619087147,-4452.28,0.00023013,2]
[363189409,1748619087157,-591.35,0.00023013,2]
[363189410,1748619087167,-8491.51,0.00023013,2]
[363189411,1748619087176,-982.46,0.00023013,2]
[363189412,1748619087185,-1017.748332,0.00023013,7]
[363189413,1748619087195,-958.4,0.00023013,2]
[363189414,1748619087204,-159.595298,0.00023013,7]
[363189415,1748619087213,-139506.04,0.00023013,2]
[363189416,1748619087222,-1343.03,0.00023013,2]
[363189417,1748619087232,-1033.36,0.00023013,2]
[363189418,1748619087241,-657.44,0.00023013,2]
[363189419,1748619087250,-1017.748332,0.00023013,7]
[363189420,1748619087261,-420.0,0.00023013,2]
[363189421,1748619087270,-453.46,0.00023013,2]
[363189422,1748619087279,-1032.71,0.00023013,2]
[363189423,1748619087288,-1623.73,0.00023013,2]
[363189424,1748619087298,-3547.4,0.00023013,2]
[363189425,1748619087308,-458.54,0.00023013,2]
[363189426,1748619087317,-982.85,0.00023013,2]
[363189427,1748619087327,-1005.97,0.00023013,2]
[363189428,1748619087336,-3804.58,0.00023013,2]
[363189429,1748619087346,-1623.36,0.00023013,2]
[363189430,1748619087355,-37354.79,0.00023013,2]
[363189431,1748619087365,-1684.99,0.00023013,2]
[363189432,1748619087376,-420.0,0.00023013,2]
[363189433,1748619087385,-1215.02,0.00023013,2]
[363189434,1748619087395,-937.17,0.00023013,2]
[363189435,1748619087405,-753.84,0.00023013,2]
[363189436,1748619087415,-420.0,0.00023013,2]
[363189437,1748619087424,-10069.56,0.00023013,2]
[363189438,1748619087434,-2424.56,0.00023013,2]
[363189439,1748619087444,-519.37,0.00023013,2]
[363189440,1748619087454,-7476.47,0.00023013,2]
[363189441,1748619087465,-868.93,0.00023013,2]
[363189442,1748619087475,-422.51,0.00023013,2]
[363189443,1748619087484,-628.41,0.00023013,2]
[363189444,1748619087494,-420.0,0.00023013,2]
[363189445,1748619087503,-1449.88,0.00023013,2]
[363189446,1748619087514,-14516.45,0.00023013,2]
[363189447,1748619087524,-4266.56,0.00023013,2]
[363189448,1748619087534,-830.49,0.00023013,2]
[363189449,1748619087546,-1548.49,0.00023013,2]
[363189450,1748619087556,-1978.38,0.00023013,2]
[363189451,1748619087568,-1884.76,0.00023013,2]
[363189452,1748619087578,-542.86,0.00023013,2]
[363189453,1748619087588,-593.44,0.00023013,2]
[363189454,1748619087598,-510.86,0.00023013,2]
[363189455,1748619087607,-420.0,0.00023013,2]
[363189456,1748619087617,-1709.24,0.00023013,2]
[363189457,1748619087628,-2758.03,0.00023013,2]
[363189458,1748619087637,-420.0,0.00023013,2]
[363189459,1748619087648,-29722.14,0.00023013,2]
[363189460,1748619087657,-881.72,0.00023013,2]
[363189461,1748619087667,-1169.42,0.00023013,2]
[363189462,1748619087677,-1544.23,0.00023013,2]
[363189463,1748619087686,-1406.27,0.00023013,2]
[363189464,1748619087696,-826.36,0.00023013,2]
[363189465,1748619087705,-1175.33,0.00023013,2]
[363189466,1748619087715,-3295.64,0.00023013,2]
[363189467,1748619087725,-1761.11,0.00023013,2]
[363189468,1748619087734,-660.71,0.00023013,2]
[363189469,1748619087744,-3573.53,0.00023013,2]
[363189470,1748619087753,-1034.84,0.00023013,2]
[363189471,1748619087763,-738.85,0.00023013,2]
[363189472,1748619087773,-1151.03,0.00023013,2]
[363189473,1748619087782,-9251.83,0.00023013,2]
[363189474,1748619087794,-420.0,0.00023013,2]
[363189475,1748619087803,-772.03,0.00023013,2]
[363189476,1748619087813,-490.63,0.00023013,2]
[363189477,1748619087822,-720.83,0.00023013,2]
[363189478,1748619087832,-1360.32,0.00023013,2]
[363189479,1748619087842,-2486.32,0.00023013,2]
[363189480,1748619087851,-723.88,0.00023013,2]
[363189481,1748619087861,-567.24,0.00023013,2]
[363189482,1748619087873,-4470.51,0.00023013,2]
[363189483,1748619087884,-1446.13,0.00023013,2]
[363189484,1748619087893,-2304.2,0.00023013,2]
[363189485,1748619087903,-1389.12,0.00023013,2]
[363189486,1748619088124,-420.0,0.00023013,2]
[363189487,1748619088133,-1054.71,0.00023013,2]
[363189488,1748619088142,-990.01,0.00023013,2]
[363189489,1748619088152,-1680.37,0.00023013,2]
[363189490,1748619088161,-521.76,0.00023013,2]
[363189491,1748619088170,-4095.54,0.00023013,2]
[363189492,1748619088180,-1486.66,0.00023013,2]
[363189493,1748619088189,-1336.51,0.00023013,2]
[363189494,1748619088199,-1487.37,0.00023013,2]
[363189495,1748619088208,-2771.35,0.00023013,2]
[363189496,1748619088218,-4189.49,0.00023013,2]
[363189497,1748619088228,-629.45,0.00023013,2]
[363189498,1748619088238,-2997.14,0.00023013,2]
[363189499,1748619088248,-1125.7,0.00023013,2]
[363189500,1748619088259,-1026.77,0.00023013,2]
[363189501,1748619088275,-614.16,0.00023013,2]
[363189502,1748619088285,-7561.37,0.00023013,2]
[363189503,1748619088295,-420.0,0.00023013,2]
[363189504,1748619088304,-1258.89,0.00023013,2]
[363189505,1748619088314,-1075.29,0.00023013,2]
[363189506,1748619088324,-760.57,0.00023013,2]
[363189507,1748619088334,-3180.63,0.00023013,2]
[363189508,1748619088344,-1927.78,0.00023013,2]
[363189509,1748619088353,-1656.75,0.00023013,2]
[363189510,1748619088363,-420.0,0.00023013,2]
[363189511,1748619088374,-641.68,0.00023013,2]
[363189512,1748619088385,-1318.91,0.00023013,2]
[363189513,1748619088395,-1139.98,0.00023013,2]
[363189514,1748619088405,-798.56,0.00023013,2]
[363189515,1748619088414,-1082.24,0.00023013,2]
[363189516,1748619088424,-718.05,0.00023013,2]
[363189517,1748619088434,-1239.27,0.00023013,2]
[363189518,1748619088444,-492.19930091,0.00023013,2]
[363189519,1748619088453,-1074.24,0.00023013,2]
[363189520,1748619088463,-3419.97,0.00023013,2]
[363189521,1748619088473,-671.13,0.00023013,2]
[363189522,1748619088482,-1848.95,0.00023013,2]
[363189523,1748619088492,-2486.27,0.00023013,2]
[363189524,1748619088502,-420.0,0.00023013,2]
[363189525,1748619088515,-420.0,0.00023013,2]
[363189526,1748619088524,-420.0,0.00023013,2]
[363189527,1748619088533,-1822.33,0.00023013,2]
[363189528,1748619088543,-4083.38,0.00023013,2]
[363189529,1748619088553,-1501.86,0.00023013,2]
[363189530,1748619088563,-1358.16,0.00023013,2]